[Event "November 21 Early 2023"]
[Site "https://www.chess.com"]
[Date "2023.11.21"]
[Round "7"]
[White "Su, Dion"]
[Black "Pasmendjambvirgulptipon98"]
[Result "1-0"]
[Board "173"]
[TimeControl "180+1"]
[WhiteFideId "2029731"]
[WhiteElo "2390"]
[BlackElo "2233"]
[WhiteTeam "USA"]
[WhiteClock "0:00:05"]
[BlackClock "0:00:02"]

1. e4 {[%clk 0:02:55]}  c5 {[%clk 0:02:58]} 2. Nf3 {[%clk 0:02:55]}  Nc6 {[%clk 0:02:58]} 3. d4 {[%clk 0:02:55]}  cxd4 {[%clk 0:02:59]} 4. Nxd4 {[%clk 0:02:56]}  Nf6 {[%clk 0:02:59]} 5. Nc3 {[%clk 0:02:56]}  e5 {[%clk 0:02:59]} 6. Ndb5 {[%clk 0:02:57]}  d6 {[%clk 0:03:00]} 7. Bg5 {[%clk 0:02:57]}  a6 {[%clk 0:02:59]} 8. Na3 {[%clk 0:02:57]}  b5 {[%clk 0:03:00]} 9. Bxf6 {[%clk 0:02:57]}  gxf6 {[%clk 0:02:59]} 10. Nd5 {[%clk 0:02:58]}  Bg7 {[%clk 0:02:59]} 11. Bd3 {[%clk 0:02:57]}  Be6 {[%clk 0:02:57]} 12. O-O {[%clk 0:01:48]}  Bxd5 {[%clk 0:02:47]} 13. exd5 {[%clk 0:01:48]}  Ne7 {[%clk 0:02:47]} 14. c4 {[%clk 0:01:48]}  b4 {[%clk 0:02:36]} 15. Nc2 {[%clk 0:01:47]}  a5 {[%clk 0:02:35]} 16. Ne3 {[%clk 0:01:47]}  Qd7 {[%clk 0:02:31]} 17. Qh5 {[%clk 0:01:46]}  a4 {[%clk 0:02:21]} 18. Rac1 {[%clk 0:01:37]}  a3 {[%clk 0:02:20]} 19. b3 {[%clk 0:01:37]}  Ng6 {[%clk 0:01:57]} 20. g3 {[%clk 0:01:30]}  Qa7 {[%clk 0:01:52]} 21. Nf5 {[%clk 0:01:29]}  Bf8 {[%clk 0:01:44]} 22. c5 {[%clk 0:01:21]}  dxc5 {[%clk 0:01:42]} 23. Bb5+ {[%clk 0:01:21]}  Kd8 {[%clk 0:01:41]} 24. Rfd1 {[%clk 0:01:06]}  Rb8 {[%clk 0:01:21]} 25. Bc4 {[%clk 0:01:06]}  Rb6 {[%clk 0:00:51]} 26. d6 {[%clk 0:01:05]}  Qd7 {[%clk 0:00:50]} 27. Rd5 {[%clk 0:00:48]}  e4 {[%clk 0:00:19]} 28. Rcd1 {[%clk 0:00:26]}  Ne5 {[%clk 0:00:19]} 29. Rxc5 {[%clk 0:00:21]}  Rg8 {[%clk 0:00:12]} 30. Rc7 {[%clk 0:00:18]}  Rg5 {[%clk 0:00:08]} 31. Rxd7+ {[%clk 0:00:17]}  Kxd7 {[%clk 0:00:08]} 32. Qh3 {[%clk 0:00:15]}  Nf3+ {[%clk 0:00:05]} 33. Kf1 {[%clk 0:00:13]}  h5 {[%clk 0:00:05]} 34. Nd4+ {[%clk 0:00:10]}  Kd8 {[%clk 0:00:03]} 35. Nxf3 {[%clk 0:00:10]}  exf3 {[%clk 0:00:04]} 36. Qh4 {[%clk 0:00:06]}  Rxd6 {[%clk 0:00:02]} 37. Rxd6+ {[%clk 0:00:06]}  Bxd6 {[%clk 0:00:03]} 38. Qd4 {[%clk 0:00:04]}  Ke7 {[%clk 0:00:03]} 39. Bd3 {[%clk 0:00:04]}  Re5 {[%clk 0:00:03]} 40. Be4 {[%clk 0:00:04]}  f5 {[%clk 0:00:03]} 41. Bxf3 {[%clk 0:00:04]}  Kf6 {[%clk 0:00:02]} 42. h4 {[%clk 0:00:04]}  Bc7 {[%clk 0:00:02]} 43. Kg2 {[%clk 0:00:04]}  Kg6 {[%clk 0:00:01]} 44. Qxb4 {[%clk 0:00:05]}  Re6 {[%clk 0:00:01]} 45. Qf8 {[%clk 0:00:04]}  Bd6 {[%clk 0:00:02]} 46. Qg8+ {[%clk 0:00:05]}  Kf6 {[%clk 0:00:03]} 47. Qh7 {[%clk 0:00:04]}  Ke7 {[%clk 0:00:03]} 48. Qxh5 {[%clk 0:00:05]}  Re1 {[%clk 0:00:03]} 49. Qg5+ {[%clk 0:00:05]}  Kd7 {[%clk 0:00:02]} 50. Qxf5+ {[%clk 0:00:05]}  Kc7 {[%clk 0:00:03]} 51. Bg4 {[%clk 0:00:05]}  Ra1 {[%clk 0:00:02]} 52. Qxf7+ {[%clk 0:00:04]}  Kb6 {[%clk 0:00:03]} 53. Qe6 {[%clk 0:00:04]}  Rxa2 {[%clk 0:00:02]} 54. Qxd6+ {[%clk 0:00:04]}  Ka5 {[%clk 0:00:03]} 55. Qc5+ {[%clk 0:00:04]}  Ka6 {[%clk 0:00:02]} 56. Bc8# {[%clk 0:00:05]} 1-0

[Event "November 21 Early 2023"]
[Site "https://www.chess.com"]
[Date "2023.11.21"]
[Round "7"]
[White "Koridze, Lile"]
[Black "missponyo10"]
[Result "0-1"]
[Board "176"]
[TimeControl "180+1"]
[WhiteFideId "13612514"]
[WhiteElo "2061"]
[BlackElo "2182"]
[WhiteTeam "GEO"]
[WhiteClock "0:00:03"]
[BlackClock "0:01:09"]

1. d4 {[%clk 0:03:00]}  Nf6 {[%clk 0:02:58]} 2. c4 {[%clk 0:03:00]}  d5 {[%clk 0:02:52]} 3. Nc3 {[%clk 0:02:56]}  c6 {[%clk 0:02:51]} 4. e3 {[%clk 0:02:55]}  e6 {[%clk 0:02:51]} 5. Nf3 {[%clk 0:02:54]}  Nbd7 {[%clk 0:02:51]} 6. Bd3 {[%clk 0:02:54]}  Bd6 {[%clk 0:02:51]} 7. O-O {[%clk 0:02:54]}  dxc4 {[%clk 0:02:51]} 8. Bxc4 {[%clk 0:02:54]}  b5 {[%clk 0:02:52]} 9. Bd3 {[%clk 0:02:54]}  Bb7 {[%clk 0:02:51]} 10. a3 {[%clk 0:02:54]}  O-O {[%clk 0:02:51]} 11. e4 {[%clk 0:02:54]}  e5 {[%clk 0:02:51]} 12. Bg5 {[%clk 0:02:52]}  exd4 {[%clk 0:02:48]} 13. Nxd4 {[%clk 0:02:52]}  h6 {[%clk 0:02:48]} 14. Bh4 {[%clk 0:02:51]}  Nc5 {[%clk 0:02:47]} 15. Bc2 {[%clk 0:02:48]}  g6 {[%clk 0:02:33]} 16. Qf3 {[%clk 0:02:18]}  Be5 {[%clk 0:02:25]} 17. Rad1 {[%clk 0:01:39]}  Ncd7 {[%clk 0:02:15]} 18. Nf5 {[%clk 0:01:25]}  gxf5 {[%clk 0:02:00]} 19. Qxf5 {[%clk 0:01:24]}  Qc7 {[%clk 0:01:56]} 20. f4 {[%clk 0:01:18]}  Bxc3 {[%clk 0:01:35]} 21. bxc3 {[%clk 0:01:15]}  c5 {[%clk 0:01:36]} 22. Bxf6 {[%clk 0:00:44]}  Nxf6 {[%clk 0:01:35]} 23. Qxf6 {[%clk 0:00:28]}  Rad8 {[%clk 0:01:32]} 24. Rf3 {[%clk 0:00:24]}  Rxd1+ {[%clk 0:01:31]} 25. Bxd1 {[%clk 0:00:23]}  Bxe4 {[%clk 0:01:31]} 26. Rg3+ {[%clk 0:00:22]}  Bg6 {[%clk 0:01:30]} 27. Bc2 {[%clk 0:00:22]}  Qb6 {[%clk 0:01:23]} 28. Qxb6 {[%clk 0:00:19]}  axb6 {[%clk 0:01:24]} 29. f5 {[%clk 0:00:20]}  Ra8 {[%clk 0:01:19]} 30. fxg6 {[%clk 0:00:19]}  Rxa3 {[%clk 0:01:19]} 31. g7 {[%clk 0:00:17]}  Ra1+ {[%clk 0:01:18]} 32. Kf2 {[%clk 0:00:10]}  Ra2 {[%clk 0:01:18]} 33. Ke1 {[%clk 0:00:09]}  Rxc2 {[%clk 0:01:18]} 34. h4 {[%clk 0:00:09]}  Rb2 {[%clk 0:01:14]} 35. Kd1 {[%clk 0:00:10]}  b4 {[%clk 0:01:13]} 36. cxb4 {[%clk 0:00:07]}  Rxb4 {[%clk 0:01:13]} 37. h5 {[%clk 0:00:06]}  b5 {[%clk 0:01:11]} 38. Kd2 {[%clk 0:00:06]}  c4 {[%clk 0:01:09]} 39. Rg4 {[%clk 0:00:03]}  c3+ {[%clk 0:01:09]} 0-1

[Event "November 21 Early 2023"]
[Site "https://www.chess.com"]
[Date "2023.11.21"]
[Round "7"]
[White "Mangialardo, Tiago Carvalho"]
[Black "Zivic, Dragan"]
[Result "1/2-1/2"]
[Board "177"]
[TimeControl "180+1"]
[WhiteFideId "2130718"]
[BlackFideId "904740"]
[WhiteElo "2151"]
[BlackElo "2073"]
[WhiteTeam "BRA"]
[BlackTeam "SRB"]
[WhiteClock "0:00:02"]
[BlackClock "0:00:07"]

1. e4 {[%clk 0:03:00]}  c6 {[%clk 0:02:47]} 2. c4 {[%clk 0:03:00]}  d5 {[%clk 0:02:48]} 3. exd5 {[%clk 0:03:01]}  cxd5 {[%clk 0:02:48]} 4. cxd5 {[%clk 0:03:02]}  Nf6 {[%clk 0:02:48]} 5. Bb5+ {[%clk 0:03:02]}  Nbd7 {[%clk 0:02:45]} 6. Nc3 {[%clk 0:03:00]}  g6 {[%clk 0:02:42]} 7. Nf3 {[%clk 0:02:59]}  Bg7 {[%clk 0:02:42]} 8. d6 {[%clk 0:03:00]}  e6 {[%clk 0:02:28]} 9. O-O {[%clk 0:02:57]}  O-O {[%clk 0:02:27]} 10. d4 {[%clk 0:02:57]}  Nb6 {[%clk 0:02:15]} 11. Bf4 {[%clk 0:02:52]}  Nbd5 {[%clk 0:02:07]} 12. Be5 {[%clk 0:02:32]}  a6 {[%clk 0:02:06]} 13. Bd3 {[%clk 0:02:26]}  Ne8 {[%clk 0:02:01]} 14. Nxd5 {[%clk 0:02:10]}  exd5 {[%clk 0:02:02]} 15. Qb3 {[%clk 0:02:10]}  Nxd6 {[%clk 0:01:49]} 16. Qxd5 {[%clk 0:02:07]}  Nf5 {[%clk 0:01:49]} 17. Qe4 {[%clk 0:01:10]}  Be6 {[%clk 0:01:44]} 18. Qxb7 {[%clk 0:00:30]}  Bd5 {[%clk 0:01:43]} 19. Qc7 {[%clk 0:00:25]}  Bxf3 {[%clk 0:01:40]} 20. Qxd8 {[%clk 0:00:20]}  Rfxd8 {[%clk 0:01:35]} 21. Bxf5 {[%clk 0:00:20]}  Bxe5 {[%clk 0:01:21]} 22. dxe5 {[%clk 0:00:10]}  Be2 {[%clk 0:01:20]} 23. Rfe1 {[%clk 0:00:05]}  Rd2 {[%clk 0:01:20]} 24. Be4 {[%clk 0:00:03]}  Rb8 {[%clk 0:01:16]} 25. b3 {[%clk 0:00:02]}  Rb4 {[%clk 0:01:15]} 26. Bf3 {[%clk 0:00:01]}  Bxf3 {[%clk 0:01:13]} 27. gxf3 {[%clk 0:00:02]}  a5 {[%clk 0:01:11]} 28. Kg2 {[%clk 0:00:02]}  a4 {[%clk 0:01:11]} 29. Re3 {[%clk 0:00:02]}  Kg7 {[%clk 0:01:03]} 30. bxa4 {[%clk 0:00:02]}  Rxa4 {[%clk 0:01:03]} 31. a3 {[%clk 0:00:02]}  h5 {[%clk 0:01:03]} 32. Re4 {[%clk 0:00:03]}  Ra5 {[%clk 0:01:01]} 33. a4 {[%clk 0:00:02]}  g5 {[%clk 0:00:40]} 34. f4 {[%clk 0:00:02]}  gxf4 {[%clk 0:00:38]} 35. Rxf4 {[%clk 0:00:03]}  Rxe5 {[%clk 0:00:36]} 36. a5 {[%clk 0:00:04]}  Rd7 {[%clk 0:00:35]} 37. a6 {[%clk 0:00:04]}  Ra7 {[%clk 0:00:35]} 38. Rb4 {[%clk 0:00:03]}  Re6 {[%clk 0:00:35]} 39. Rba4 {[%clk 0:00:01]}  Kg6 {[%clk 0:00:35]} 40. Ra5 {[%clk 0:00:01]}  f5 {[%clk 0:00:34]} 41. Kg3 {[%clk 0:00:01]}  Rb6 {[%clk 0:00:31]} 42. Kf4 {[%clk 0:00:01]}  Rb4+ {[%clk 0:00:31]} 43. Kg3 {[%clk 0:00:01]}  Rb3+ {[%clk 0:00:31]} 44. Kf4 {[%clk 0:00:01]}  Rb6 {[%clk 0:00:32]} 45. Rg1+ {[%clk 0:00:01]}  Kh6 {[%clk 0:00:31]} 46. Rg5 {[%clk 0:00:01]}  Raxa6 {[%clk 0:00:29]} 47. Raxf5 {[%clk 0:00:02]}  Ra4+ {[%clk 0:00:29]} 48. Kg3 {[%clk 0:00:02]}  Rg6 {[%clk 0:00:23]} 49. Rxg6+ {[%clk 0:00:02]}  Kxg6 {[%clk 0:00:23]} 50. Rf4 {[%clk 0:00:03]}  Ra3+ {[%clk 0:00:23]} 51. f3 {[%clk 0:00:03]}  Ra1 {[%clk 0:00:23]} 52. Kh4 {[%clk 0:00:03]}  Ra2 {[%clk 0:00:20]} 53. h3 {[%clk 0:00:03]}  Ra6 {[%clk 0:00:18]} 54. Re4 {[%clk 0:00:03]}  Rb6 {[%clk 0:00:17]} 55. f4 {[%clk 0:00:03]}  Rf6 {[%clk 0:00:16]} 56. Rd4 {[%clk 0:00:03]}  Kh6 {[%clk 0:00:14]} 57. Kg3 {[%clk 0:00:03]}  Kg6 {[%clk 0:00:13]} 58. Kf3 {[%clk 0:00:03]}  Rb6 {[%clk 0:00:12]} 59. h4 {[%clk 0:00:03]}  Rf6 {[%clk 0:00:08]} 60. Ke4 {[%clk 0:00:03]}  Re6+ {[%clk 0:00:08]} 61. Kd5 {[%clk 0:00:03]}  Re1 {[%clk 0:00:08]} 62. Kd6 {[%clk 0:00:02]}  Rh1 {[%clk 0:00:07]} 63. Ke6 {[%clk 0:00:02]}  Re1+ {[%clk 0:00:07]} 64. Kd6 {[%clk 0:00:02]}  Rh1 {[%clk 0:00:07]} 65. Ke6 {[%clk 0:00:02]}  Re1+ {[%clk 0:00:07]} 66. Kd6 {[%clk 0:00:02]} 1/2-1/2

[Event "November 21 Early 2023"]
[Site "https://www.chess.com"]
[Date "2023.11.21"]
[Round "7"]
[White "Bokros, Albert"]
[Black "Elbebiber"]
[Result "0-1"]
[Board "178"]
[TimeControl "180+1"]
[WhiteFideId "710458"]
[WhiteElo "2489"]
[BlackElo "2149"]
[WhiteTeam "HUN"]
[WhiteClock "0:00:00"]
[BlackClock "0:00:11"]

1. e4 {[%clk 0:02:50]}  d5 {[%clk 0:02:59]} 2. Nf3 {[%clk 0:02:49]}  dxe4 {[%clk 0:02:55]} 3. Ng5 {[%clk 0:02:45]}  Nf6 {[%clk 0:02:48]} 4. d3 {[%clk 0:02:44]}  Bf5 {[%clk 0:02:40]} 5. Nc3 {[%clk 0:01:45]}  exd3 {[%clk 0:02:36]} 6. Bf4 {[%clk 0:01:33]}  c6 {[%clk 0:02:19]} 7. cxd3 {[%clk 0:01:23]}  e6 {[%clk 0:02:16]} 8. Be2 {[%clk 0:01:20]}  Be7 {[%clk 0:02:09]} 9. O-O {[%clk 0:01:07]}  Nd5 {[%clk 0:02:04]} 10. Nxd5 {[%clk 0:00:57]}  cxd5 {[%clk 0:02:03]} 11. Nf3 {[%clk 0:00:55]}  Nc6 {[%clk 0:01:58]} 12. d4 {[%clk 0:00:38]}  Qb6 {[%clk 0:01:49]} 13. Qd2 {[%clk 0:00:34]}  O-O {[%clk 0:01:44]} 14. Rfd1 {[%clk 0:00:26]}  Rac8 {[%clk 0:01:38]} 15. Ne5 {[%clk 0:00:23]}  Nxe5 {[%clk 0:01:28]} 16. Bxe5 {[%clk 0:00:23]}  Rc2 {[%clk 0:01:15]} 17. Qe3 {[%clk 0:00:18]}  Qxb2 {[%clk 0:01:00]} 18. Bf3 {[%clk 0:00:13]}  Qc3 {[%clk 0:00:53]} 19. Qf4 {[%clk 0:00:10]}  Bg6 {[%clk 0:00:45]} 20. Rac1 {[%clk 0:00:08]}  Rc8 {[%clk 0:00:38]} 21. Rxc2 {[%clk 0:00:08]}  Qxc2 {[%clk 0:00:38]} 22. h3 {[%clk 0:00:08]}  Qf5 {[%clk 0:00:34]} 23. Qd2 {[%clk 0:00:07]}  b6 {[%clk 0:00:29]} 24. Bg4 {[%clk 0:00:06]}  Qc2 {[%clk 0:00:27]} 25. Qf4 {[%clk 0:00:06]}  Qe4 {[%clk 0:00:25]} 26. Qd2 {[%clk 0:00:06]}  h6 {[%clk 0:00:22]} 27. Bf3 {[%clk 0:00:05]}  Qc2 {[%clk 0:00:21]} 28. Qf4 {[%clk 0:00:05]}  Qf5 {[%clk 0:00:21]} 29. Qd2 {[%clk 0:00:05]}  Rc2 {[%clk 0:00:21]} 30. Qe3 {[%clk 0:00:04]}  Rxa2 {[%clk 0:00:18]} 31. Qb3 {[%clk 0:00:04]}  Ra5 {[%clk 0:00:15]} 32. Rc1 {[%clk 0:00:02]}  Kh7 {[%clk 0:00:14]} 33. Rc8 {[%clk 0:00:02]}  Bg5 {[%clk 0:00:13]} 34. Rc7 {[%clk 0:00:00]}  Bf4 {[%clk 0:00:11]} 0-1

[Event "November 21 Early 2023"]
[Site "https://www.chess.com"]
[Date "2023.11.21"]
[Round "7"]
[White "Odeh, Kenneth"]
[Black "Kornyukov, Alexey"]
[Result "1/2-1/2"]
[Board "179"]
[TimeControl "180+1"]
[WhiteFideId "8500142"]
[BlackFideId "4150457"]
[WhiteElo "2031"]
[BlackElo "2352"]
[WhiteTeam "NGR"]
[BlackTeam "RUS"]
[WhiteClock "0:00:17"]
[BlackClock "0:00:13"]

1. e4 {[%clk 0:02:57]}  c5 {[%clk 0:02:59]} 2. Nc3 {[%clk 0:02:56]}  e6 {[%clk 0:02:57]} 3. g3 {[%clk 0:02:56]}  d5 {[%clk 0:02:57]} 4. Bg2 {[%clk 0:02:53]}  d4 {[%clk 0:02:57]} 5. Nce2 {[%clk 0:02:53]}  Nc6 {[%clk 0:02:56]} 6. d3 {[%clk 0:02:53]}  Be7 {[%clk 0:02:54]} 7. f4 {[%clk 0:02:53]}  Nf6 {[%clk 0:02:53]} 8. Nf3 {[%clk 0:02:52]}  O-O {[%clk 0:02:52]} 9. O-O {[%clk 0:02:52]}  b6 {[%clk 0:02:46]} 10. h3 {[%clk 0:02:40]}  Bb7 {[%clk 0:02:34]} 11. g4 {[%clk 0:02:39]}  Nd7 {[%clk 0:02:26]} 12. f5 {[%clk 0:02:35]}  exf5 {[%clk 0:02:23]} 13. exf5 {[%clk 0:02:31]}  f6 {[%clk 0:02:23]} 14. Nf4 {[%clk 0:02:29]}  Qc8 {[%clk 0:02:16]} 15. Ne6 {[%clk 0:02:28]}  Rf7 {[%clk 0:02:16]} 16. Nh4 {[%clk 0:02:18]}  Nce5 {[%clk 0:02:13]} 17. Bf4 {[%clk 0:02:08]}  Bxg2 {[%clk 0:02:01]} 18. Kxg2 {[%clk 0:02:05]}  Qc6+ {[%clk 0:01:58]} 19. Kg1 {[%clk 0:02:00]}  Bd6 {[%clk 0:01:49]} 20. Qe2 {[%clk 0:01:38]}  Re8 {[%clk 0:01:44]} 21. Rae1 {[%clk 0:01:33]}  Qd5 {[%clk 0:01:40]} 22. b3 {[%clk 0:01:28]}  g6 {[%clk 0:01:28]} 23. Qg2 {[%clk 0:01:19]}  Qxg2+ {[%clk 0:01:12]} 24. Nxg2 {[%clk 0:01:18]}  g5 {[%clk 0:01:03]} 25. Bh2 {[%clk 0:01:05]}  Nf8 {[%clk 0:01:01]} 26. Nxf8 {[%clk 0:01:00]}  Kxf8 {[%clk 0:00:59]} 27. Bxe5 {[%clk 0:00:59]}  Rxe5 {[%clk 0:00:58]} 28. Rxe5 {[%clk 0:00:58]}  Bxe5 {[%clk 0:00:58]} 29. Ne1 {[%clk 0:00:54]}  h5 {[%clk 0:00:54]} 30. Nf3 {[%clk 0:00:52]}  Bf4 {[%clk 0:00:51]} 31. Re1 {[%clk 0:00:49]}  hxg4 {[%clk 0:00:49]} 32. hxg4 {[%clk 0:00:48]}  Be3+ {[%clk 0:00:49]} 33. Kg2 {[%clk 0:00:47]}  Rh7 {[%clk 0:00:47]} 34. Rh1 {[%clk 0:00:45]}  Rxh1 {[%clk 0:00:45]} 35. Kxh1 {[%clk 0:00:45]}  Ke7 {[%clk 0:00:45]} 36. Kg2 {[%clk 0:00:44]}  Kd6 {[%clk 0:00:45]} 37. Nh2 {[%clk 0:00:40]}  Bf4 {[%clk 0:00:44]} 38. Nf3 {[%clk 0:00:39]}  Kd5 {[%clk 0:00:43]} 39. Nh2 {[%clk 0:00:35]}  b5 {[%clk 0:00:32]} 40. Nf1 {[%clk 0:00:32]}  a5 {[%clk 0:00:31]} 41. Ng3 {[%clk 0:00:32]}  Bxg3 {[%clk 0:00:27]} 42. Kxg3 {[%clk 0:00:31]}  c4 {[%clk 0:00:27]} 43. Kf3 {[%clk 0:00:29]}  cxb3 {[%clk 0:00:19]} 44. cxb3 {[%clk 0:00:28]}  Ke5 {[%clk 0:00:18]} 45. Kg3 {[%clk 0:00:26]}  Kd6 {[%clk 0:00:18]} 46. Kf3 {[%clk 0:00:21]}  Kd5 {[%clk 0:00:18]} 47. Kg3 {[%clk 0:00:20]}  Kc5 {[%clk 0:00:18]} 48. a3 {[%clk 0:00:19]}  b4 {[%clk 0:00:12]} 49. a4 {[%clk 0:00:19]}  Kd5 {[%clk 0:00:12]} 50. Kf3 {[%clk 0:00:19]}  Ke5 {[%clk 0:00:13]} 51. Kg3 {[%clk 0:00:18]}  Kd5 {[%clk 0:00:13]} 52. Kf3 {[%clk 0:00:18]}  Kc5 {[%clk 0:00:13]} 53. Kg3 {[%clk 0:00:17]}  Kd5 {[%clk 0:00:13]} 1/2-1/2

[Event "November 21 Early 2023"]
[Site "https://www.chess.com"]
[Date "2023.11.21"]
[Round "7"]
[White "Seletsky, Grigory"]
[Black "LLariMarc"]
[Result "1-0"]
[Board "181"]
[TimeControl "180+1"]
[WhiteFideId "14112191"]
[WhiteElo "2482"]
[BlackElo "2239"]
[WhiteTeam "UKR"]
[WhiteClock "0:00:14"]
[BlackClock "0:01:28"]

1. e4 {[%clk 0:02:36]}  e6 {[%clk 0:02:59]} 2. d3 {[%clk 0:02:34]}  d5 {[%clk 0:03:00]} 3. Qe2 {[%clk 0:02:34]}  dxe4 {[%clk 0:02:41]} 4. dxe4 {[%clk 0:02:33]}  Nc6 {[%clk 0:02:39]} 5. c3 {[%clk 0:02:33]}  b6 {[%clk 0:02:39]} 6. Nf3 {[%clk 0:02:28]}  a5 {[%clk 0:02:38]} 7. Qc2 {[%clk 0:02:28]}  Ba6 {[%clk 0:02:38]} 8. Bxa6 {[%clk 0:02:25]}  Rxa6 {[%clk 0:02:39]} 9. Qa4 {[%clk 0:02:22]}  Qd7 {[%clk 0:02:36]} 10. O-O {[%clk 0:02:22]}  Nb8 {[%clk 0:02:36]} 11. Qc2 {[%clk 0:02:20]}  Nf6 {[%clk 0:02:32]} 12. Bf4 {[%clk 0:02:09]}  Be7 {[%clk 0:02:26]} 13. Ne5 {[%clk 0:02:07]}  Qc8 {[%clk 0:02:23]} 14. a4 {[%clk 0:01:55]}  O-O {[%clk 0:02:23]} 15. Nd2 {[%clk 0:01:50]}  Qb7 {[%clk 0:02:22]} 16. Rfe1 {[%clk 0:01:41]}  Nbd7 {[%clk 0:02:21]} 17. Ndc4 {[%clk 0:01:37]}  Nxe5 {[%clk 0:02:20]} 18. Bxe5 {[%clk 0:01:34]}  Nd7 {[%clk 0:02:17]} 19. Bd4 {[%clk 0:01:31]}  Bc5 {[%clk 0:02:16]} 20. Rad1 {[%clk 0:01:29]}  Bxd4 {[%clk 0:02:15]} 21. cxd4 {[%clk 0:01:27]}  Raa8 {[%clk 0:02:14]} 22. f3 {[%clk 0:01:24]}  Rfd8 {[%clk 0:02:12]} 23. Ne3 {[%clk 0:01:22]}  Rac8 {[%clk 0:02:11]} 24. b3 {[%clk 0:01:20]}  Nf6 {[%clk 0:02:11]} 25. Qb2 {[%clk 0:01:10]}  c6 {[%clk 0:02:00]} 26. e5 {[%clk 0:01:05]}  Nd5 {[%clk 0:02:00]} 27. Nc4 {[%clk 0:01:04]}  Qd7 {[%clk 0:01:58]} 28. Nd6 {[%clk 0:01:04]}  Rb8 {[%clk 0:01:58]} 29. Rd2 {[%clk 0:00:59]}  Ne7 {[%clk 0:01:57]} 30. Rc1 {[%clk 0:00:51]}  Nc8 {[%clk 0:01:56]} 31. Ne4 {[%clk 0:00:47]}  Ne7 {[%clk 0:01:55]} 32. Qc2 {[%clk 0:00:43]}  Rbc8 {[%clk 0:01:54]} 33. Nd6 {[%clk 0:00:33]}  Rc7 {[%clk 0:01:54]} 34. f4 {[%clk 0:00:24]}  Nf5 {[%clk 0:01:54]} 35. Nxf5 {[%clk 0:00:19]}  exf5 {[%clk 0:01:54]} 36. d5 {[%clk 0:00:19]}  c5 {[%clk 0:01:55]} 37. d6 {[%clk 0:00:19]}  Rcc8 {[%clk 0:01:54]} 38. Qc4 {[%clk 0:00:18]}  Qc6 {[%clk 0:01:50]} 39. Re1 {[%clk 0:00:19]}  Rd7 {[%clk 0:01:48]} 40. Qd5 {[%clk 0:00:19]}  Qxd5 {[%clk 0:01:48]} 41. Rxd5 {[%clk 0:00:19]}  Re8 {[%clk 0:01:48]} 42. Kf2 {[%clk 0:00:19]}  Re6 {[%clk 0:01:48]} 43. g3 {[%clk 0:00:20]}  g6 {[%clk 0:01:48]} 44. Re3 {[%clk 0:00:20]}  Kf8 {[%clk 0:01:47]} 45. Kf3 {[%clk 0:00:20]}  h5 {[%clk 0:01:47]} 46. h3 {[%clk 0:00:20]}  Ke8 {[%clk 0:01:47]} 47. g4 {[%clk 0:00:21]}  fxg4+ {[%clk 0:01:48]} 48. hxg4 {[%clk 0:00:21]}  hxg4+ {[%clk 0:01:49]} 49. Kxg4 {[%clk 0:00:21]}  f6 {[%clk 0:01:48]} 50. f5 {[%clk 0:00:21]}  gxf5+ {[%clk 0:01:46]} 51. Kxf5 {[%clk 0:00:21]}  Rxe5+ {[%clk 0:01:47]} 52. Rexe5+ {[%clk 0:00:21]}  fxe5 {[%clk 0:01:48]} 53. Kxe5 {[%clk 0:00:20]}  Kd8 {[%clk 0:01:45]} 54. Rd3 {[%clk 0:00:20]}  Rh7 {[%clk 0:01:44]} 55. Rf3 {[%clk 0:00:16]}  Kd7 {[%clk 0:01:41]} 56. Rf5 {[%clk 0:00:15]}  Rg7 {[%clk 0:01:40]} 57. Kd5 {[%clk 0:00:14]}  Rh7 {[%clk 0:01:40]} 58. Re5 {[%clk 0:00:14]}  Rf7 {[%clk 0:01:39]} 59. Re7+ {[%clk 0:00:14]}  Rxe7 {[%clk 0:01:39]} 60. dxe7 {[%clk 0:00:14]}  Kxe7 {[%clk 0:01:31]} 61. Kc6 {[%clk 0:00:15]}  Ke6 {[%clk 0:01:31]} 62. Kxb6 {[%clk 0:00:15]}  Kd5 {[%clk 0:01:24]} 63. Kxa5 {[%clk 0:00:15]}  c4 {[%clk 0:01:25]} 64. bxc4+ {[%clk 0:00:15]}  Kc5 {[%clk 0:01:25]} 65. Ka6 {[%clk 0:00:14]}  Kc6 {[%clk 0:01:24]} 66. a5 {[%clk 0:00:14]}  Kc7 {[%clk 0:01:25]} 67. Kb5 {[%clk 0:00:14]}  Kb7 {[%clk 0:01:25]} 68. c5 {[%clk 0:00:15]}  Ka7 {[%clk 0:01:26]} 69. c6 {[%clk 0:00:15]}  Kb8 {[%clk 0:01:26]} 70. Kc5 {[%clk 0:00:15]}  Kc7 {[%clk 0:01:27]} 71. a6 {[%clk 0:00:15]}  Kc8 {[%clk 0:01:27]} 72. Kd6 {[%clk 0:00:16]}  Kb8 {[%clk 0:01:26]} 73. Kd7 {[%clk 0:00:15]}  Ka7 {[%clk 0:01:27]} 74. c7 {[%clk 0:00:15]}  Kb6 {[%clk 0:01:28]} 75. c8=Q {[%clk 0:00:14]} 1-0

[Event "November 21 Early 2023"]
[Site "https://www.chess.com"]
[Date "2023.11.21"]
[Round "7"]
[White "Fernandez Siles, Luis"]
[Black "Fernandez Hernandez, Gerardo"]
[Result "1-0"]
[Board "186"]
[TimeControl "180+1"]
[WhiteFideId "2209420"]
[BlackFideId "2207400"]
[WhiteElo "2195"]
[BlackElo "2118"]
[WhiteTeam "ESP"]
[BlackTeam "ESP"]
[WhiteClock "0:01:44"]
[BlackClock "0:00:00"]

1. e4 {[%clk 0:03:00]}  e6 {[%clk 0:02:59]} 2. d4 {[%clk 0:02:58]}  d5 {[%clk 0:03:00]} 3. e5 {[%clk 0:02:58]}  c5 {[%clk 0:02:59]} 4. c3 {[%clk 0:02:59]}  Nc6 {[%clk 0:03:00]} 5. Nf3 {[%clk 0:02:59]}  Qb6 {[%clk 0:03:00]} 6. a3 {[%clk 0:03:00]}  f6 {[%clk 0:03:00]} 7. b4 {[%clk 0:02:59]}  fxe5 {[%clk 0:03:00]} 8. Nxe5 {[%clk 0:02:58]}  Nxe5 {[%clk 0:02:37]} 9. dxe5 {[%clk 0:02:57]}  g6 {[%clk 0:02:00]} 10. h4 {[%clk 0:02:56]}  Bg7 {[%clk 0:01:42]} 11. h5 {[%clk 0:02:52]}  Ne7 {[%clk 0:01:33]} 12. Be3 {[%clk 0:02:46]}  Qc7 {[%clk 0:01:21]} 13. f4 {[%clk 0:02:37]}  c4 {[%clk 0:01:13]} 14. hxg6 {[%clk 0:02:36]}  hxg6 {[%clk 0:01:07]} 15. Rxh8+ {[%clk 0:02:35]}  Bxh8 {[%clk 0:01:08]} 16. Nd2 {[%clk 0:02:30]}  Bd7 {[%clk 0:01:00]} 17. a4 {[%clk 0:02:29]}  Nf5 {[%clk 0:00:57]} 18. Bc5 {[%clk 0:02:28]}  b6 {[%clk 0:00:51]} 19. Bf2 {[%clk 0:02:27]}  O-O-O {[%clk 0:00:43]} 20. g4 {[%clk 0:02:24]}  Ne7 {[%clk 0:00:36]} 21. a5 {[%clk 0:02:18]}  b5 {[%clk 0:00:32]} 22. a6 {[%clk 0:02:17]}  Rf8 {[%clk 0:00:21]} 23. Bc5 {[%clk 0:02:13]}  Rf7 {[%clk 0:00:15]} 24. Nf3 {[%clk 0:02:04]}  Nc6 {[%clk 0:00:13]} 25. Qd2 {[%clk 0:02:02]}  Bg7 {[%clk 0:00:09]} 26. Ng5 {[%clk 0:02:00]}  Rf8 {[%clk 0:00:07]} 27. Bxf8 {[%clk 0:01:55]}  Bxf8 {[%clk 0:00:08]} 28. Qh2 {[%clk 0:01:53]}  Be7 {[%clk 0:00:06]} 29. Qh7 {[%clk 0:01:48]}  Bxg5 {[%clk 0:00:05]} 30. fxg5 {[%clk 0:01:47]}  Qxe5+ {[%clk 0:00:05]} 31. Kd1 {[%clk 0:01:45]}  Qxc3 {[%clk 0:00:05]} 32. Qh8+ {[%clk 0:01:44]}  Kc7 {[%clk 0:00:00]} 33. Qxc3 {[%clk 0:01:44]} 1-0